Cogmind - Beta 16 @@@ ROGUE MODE // 2025.11.04 @ 14:27:52 Player: Not_Jesus8 Result: Self-destructed Performance ------------- Evolutions (1) 500 Regions Visited (6) 1200 Robots Destroyed (51) 255 Value Destroyed (1086) 1086 Prototype IDs (23) 460 Alien Tech Used (0) 0 Bonus (36) 36 TOTAL SCORE: 3537 Bonus ------- High Alert Combat Kills 8 Follower Combat Kills 28 Cogmind --------- Core Integrity 146/400 Matter 256/300 Energy 265/265 System Corruption 0% Temperature Cool (0) Movement Treading (160) Location -8/Mines Parts ------- > --- POWER (1) -------- Improved Ion Engine > --- PROPULSION (3) --- Light Treads Light Treads > --- UTILITY (2) ------ Medium Storage Unit Targeting Computer > --- WEAPON (3) ------- Minigun Minigun Minigun > --- INVENTORY (10) --- Wheel High-capacity Storage Unit Improved Terrain Scanner Transport Network Coupler Supersonic Drone Bay (1/1) Minigun Missile Launcher Missile Launcher Missile Launcher Makeshift Sword Peak State ------------ > --- POWER ------------ Improved Ion Engine > --- PROPULSION ------- Light Treads Light Treads > --- UTILITY ---------- Medium Storage Unit Targeting Computer > --- WEAPON ----------- Minigun Minigun Minigun > --- INVENTORY -------- Wheel High-capacity Storage Unit Improved Terrain Scanner Transport Network Coupler Supersonic Drone Bay Minigun Missile Launcher Missile Launcher Missile Launcher Makeshift Sword [Rating: 18] Favorites ----------- Power Ion Engine Engine Ion Engine Propulsion Light Treads Treads Light Treads Wheel Wheel Utility Medium Storage Unit Device Seismic Detector Storage Medium Storage Unit Processor Targeting Computer Weapon Minigun Energy Gun Medium Laser Ballistic Gun Minigun Ballistic Cannon Improved Light Cannon Launcher Grenade Launcher Build | -11 -10 -10 -9 -9 -9 -8 ------- Run | Yrd Mat Min Mat Min Exi Min Slots Evolved 2 | . . . 2 . . . Power . | . . . . . . . Propulsion 1 | . . . 1 . . . Utility . | . . . . . . . Weapon 1 | . . . 1 . . . Parts Attached 31 | 10 6 1 13 . 1 . Power 3 | 1 . . 2 . . . Engine 3 | 1 . . 2 . . . Core . | . . . . . . . Reactor . | . . . . . . . Propulsion 8 | 4 . . 4 . . . Treads 6 | 2 . . 4 . . . Leg . | . . . . . . . Wheel 2 | 2 . . . . . . Hover . | . . . . . . . Flight . | . . . . . . . Utility 6 | 2 3 . . . 1 . Device 1 | 1 . . . . . . Storage 4 | 1 3 . . . . . Processor 1 | . . . . . 1 . Hackware . | . . . . . . . Protection . | . . . . . . . Artifact . | . . . . . . . Weapon 14 | 3 3 1 7 . . . Energy Gun 2 | 2 . . . . . . Energy Cannon . | . . . . . . . Ballistic Gun 7 | 1 1 . 5 . . . Ballistic Cannon 3 | . 2 . 1 . . . Launcher 2 | . . 1 1 . . . Special Weapon . | . . . . . . . Impact Weapon . | . . . . . . . Slashing Weapon . | . . . . . . . Piercing Weapon . | . . . . . . . Special Melee Weapon . | . . . . . . . Unidentified Prototypes . | . . . . . . . Parts Lost 12 | . . . 12 . . . Power 2 | . . . 2 . . . Propulsion 4 | . . . 4 . . . Utility 1 | . . . 1 . . . Weapon 5 | . . . 5 . . . Highest Loss Streak 8 | . . . 8 . . . To Critical Strikes . | . . . . . . . Average Backups 7 | 3 7 8 7 10 10 10 Power . | . . . . . . . Propulsion 1 | . 1 2 1 1 1 1 Utility 3 | . 2 3 3 4 4 4 Weapon 3 | 1 2 3 2 5 5 5 Tool/Special . | . . . . . . . Unused Backups 9 | . . . . . 1 8 Power . | . . . . . . . Propulsion . | . . . . . . . Utility 3 | . . . . . . 3 Weapon 6 | . . . . . 1 5 Tool/Special . | . . . . . . . Average Slot Usage (%) 85 | . 100 100 66 77 79 88 Engine 11 | . 14 14 7 11 11 11 Treads 23 | . 28 28 14 22 22 22 Device 6 | . 14 14 6 . . . Storage 12 | . 14 14 11 11 11 11 Energy Gun 2 | . 6 . . . . . Ballistic Gun 20 | . 11 . 11 33 33 33 Ballistic Cannon 6 | . 9 16 15 . . . Peak Build Rating 18 | 7 10 10 16 16 18 18 Average Rating 11 | 5 8 9 10 16 16 18 On Entrance 10 | . 7 10 9 16 16 18 Avg Prop Armor Cover (%) . | . . . . . . . Naked Turns . | . . . . . . . Heaviest Build 50 | 15 50 24 28 26 26 26 Greatest Support 40 | 40 40 40 40 40 40 40 Greatest Overweight (x) 6 | . 1 . 6 . . . Average Overweight (x) . | . . . . . . . Largest Inventory Capacity 20 | 8 20 10 10 10 10 10 Average Capacity 9 | 7 9 10 10 10 10 10 Most Carried 10 | 4 8 8 10 10 10 10 Average Carried 7 | 3 7 8 7 10 9 10 Final Capacity 10 | 8 10 10 10 10 10 10 Final Carried 10 | 4 8 8 10 10 10 10 Class Distribution -------------------- 51% | Mutant 48% | Gunner Dominant Class ---------------- Mutant | -10/Materials Mutant | -10/Mines Gunner | -9/Materials Gunner | -9/Mines Gunner | -9/Exiles Gunner | -8/Mines Resources | -11 -10 -10 -9 -9 -9 -8 ----------- Run | Yrd Mat Min Mat Min Exi Min Matter Collected 1383 | 271 350 40 329 232 . 161 Remotely . | . . . . . . . Salvage Created 1433 | 115 473 32 443 232 91 47 Parts 93 | 19 24 5 33 7 4 1 Haulers Intercepted 2 | . 2 . . . . . Recyclers Shooed 3 | . 2 . . 1 . . Parts Field Recycled . | . . . . . . . Retrieved Matter . | . . . . . . . Parts Self-Destructed . | . . . . . . . Prevented . | . . . . . . . Parts Restored . | . . . . . . . Kills | -11 -10 -10 -9 -9 -9 -8 ------- Run | Yrd Mat Min Mat Min Exi Min Combat Hostiles Destroyed 38 | . 12 4 18 3 . 1 Guns 13 | . 5 . 4 3 . 1 Cannons 13 | . 7 . 6 . . . AOE 12 | . . 4 8 . . . Classes Destroyed 8 | 1 4 . 2 . . 1 Worker 1 | . . . 1 . . . Tunneler 6 | 6 . . . . . . Hauler 2 | . 2 . . . . . Recycler 4 | . 1 . 1 2 . . Swarmer 18 | . 3 4 8 3 . . Grunt 14 | . 9 . 5 . . . Sentry 5 | . . . 5 . . . Hunter 1 | . . . . . . 1 Best Kill Streak 8 | 2 3 4 8 2 . 1 Combat Bots Only 6 | . 3 4 6 2 . 1 Max Kills in Single Turn 3 | 1 1 2 3 1 . 1 Gunslinging 1 | . . . 1 . . . Exploded 3 | . . 2 3 . . . Melee . | . . . . . . . Uniques/NPCs Destroyed . | . . . . . . . Combat | -11 -10 -10 -9 -9 -9 -8 -------- Run | Yrd Mat Min Mat Min Exi Min Hostile Shots Fired 187 | . 40 7 121 11 . 8 Missed 44 | . 7 2 29 3 . 3 Hits 143 | . 33 5 92 8 . 5 Projectile 143 | . 33 5 92 8 . 5 Critical Strikes 5 | . . . 5 . . . Damage Taken 1860 | . 423 43 1250 62 . 82 Core 303 | . 34 15 214 7 . 33 Absorbed by Shields . | . . . . . . . Core Remaining (%) 90 | 100 . 80 . . . . Volleys Fired 133 | 14 45 3 49 12 5 5 Largest 3 | 2 2 1 3 3 3 3 Hottest 99 | 70 70 30 99 75 75 75 Shots Fired 280 | 28 90 3 93 36 15 15 Gun 176 | 28 48 . 34 36 15 15 Cannon 94 | . 42 . 52 . . . Launcher 10 | . . 3 7 . . . Special . | . . . . . . . Kinetic 232 | 14 66 . 86 36 15 15 Thermal 38 | 14 24 . . . . . Explosive 10 | . . 3 7 . . . Electromagnetic . | . . . . . . . Robot Hit Streak 13 | 5 10 5 7 3 13 5 Robot Miss Streak 4 | 2 3 1 4 4 1 2 Penetration Max . | . . . . . . . Secondary Targets 2 | . . . 1 1 . . Max Gunslinging Chain 1 | . . . 1 1 . . Shots Hit Robots 172 | 15 61 1 57 16 13 9 Core Hits 66 | 6 20 4 26 6 2 2 Critical Kills . | . . . . . . . Critical Parts Destroyed . | . . . . . . . Critical Strikes 3 | 1 2 . . . . . Burn 3 | 1 2 . . . . . Melee Attacks . | . . . . . . . Impact . | . . . . . . . Slashing . | . . . . . . . Piercing . | . . . . . . . Sneak Attacks . | . . . . . . . Combat Hostiles . | . . . . . . . Follow-up Attacks . | . . . . . . . Damage Inflicted 3559 | 197 1012 159 1510 296 234 151 Guns 1588 | 193 411 . 314 285 234 151 Cannons 1310 | . 595 . 715 . . . Explosions 640 | . . 159 481 . . . Melee . | . . . . . . . Ramming 21 | 4 6 . . 11 . . Kinetic 2589 | 94 796 . 1029 285 234 151 Thermal 309 | 99 210 . . . . . Explosive 640 | . . 159 481 . . . Electromagnetic . | . . . . . . . Impact . | . . . . . . . Slashing . | . . . . . . . Piercing . | . . . . . . . Highest Corruption . | . . . . . . . Average Corruption . | . . . . . . . Corruption Purged . | . . . . . . . Corruption Blocked . | . . . . . . . Overload Shots . | . . . . . . . Overflow Damage 14 | . . . 14 . . . Projectiles . | . . . . . . . Explosions 14 | . . . 14 . . . Melee . | . . . . . . . Knockbacks 3 | . 2 . 1 . . . Impact . | . . . . . . . Kinetic 3 | . 2 . 1 . . . Secondary . | . . . . . . . Self-Inflicted Damage 107 | . . 8 99 . . . Shots 4 | . . 1 3 . . . Rammed 12 | 3 7 . . 2 . . Targets Rammed 12 | 3 7 . . 2 . . Kicked . | . . . . . . . Crushed . | . . . . . . . Highest Temperature 163 | 36 163 . 155 84 106 84 Average Temperature 41 | 12 45 . 51 34 53 42 Received Heat Transfer 660 | . 207 . 453 . . . Siege Activations . | . . . . . . . Martial Activations . | . . . . . . . Shielding Activations . | . . . . . . . Robots Disrupted . | . . . . . . . Combat Hostiles . | . . . . . . . Robots Corrupted . | . . . . . . . Combat Hostiles . | . . . . . . . Parts Fried . | . . . . . . . Impact Corruptions . | . . . . . . . Robots Melted 1 | . 1 . . . . . Combat Hostiles . | . . . . . . . Parts Melted 1 | . 1 . . . . . Heat Transferred 1147 | 370 777 . . . . . Parts Sabotaged . | . . . . . . . Parts Stolen . | . . . . . . . Parts Stripped . | . . . . . . . Power Chain Reactions . | . . . . . . . Alert | -11 -10 -10 -9 -9 -9 -8 ------- Run | Yrd Mat Min Mat Min Exi Min Maximum Alert Level 2 | . . . 2 . . . Low Security (%) 88 | 100 100 100 36 100 . 100 Level 1 10 | . . . 58 . . . Level 2 . | . . . 4 . . . Level 3 . | . . . . . . . Level 4 . | . . . . . . . Level 5 . | . . . . . . . High Security . | . . . . . . . Max Security . | . . . . . . . Peak Influence 406 | 5 159 193 406 177 . 132 Initial 142 | . . 49 66 142 . . Average 85 | . 37 167 250 133 . 98 Influence Increases 1377 | 30 376 144 600 95 . 132 Destroy 0b10 Robot/C 840 | . 240 80 360 60 . 100 Destroy 0b10 Robot/NC 65 | 30 15 . 10 10 . . Destroy Leader 184 | . 44 20 90 10 . 20 Allied During Kill 12 | . . . . . . 12 Successful Hack 38 | . 30 . 8 . . . Disable Machine 60 | . 15 30 15 . . . Destroy Structure 58 | . 2 14 42 . . . Partial Spotted 15 | . 15 . . . . . Lose Combat Pursuer 105 | . 15 . 75 15 . . Influence Decreases 1255 | 30 247 100 407 364 97 10 Entered New Map 508 | . . 80 107 224 97 . Time Decay 627 | 30 247 20 180 140 . 10 Lost Part 120 | . . . 120 . . . Squads Dispatched 2 | . 1 . 1 . . . Investigation 1 | . 1 . . . . . Extermination . | . . . . . . . Reinforcement 1 | . . . 1 . . . Assault . | . . . . . . . Garrison . | . . . . . . . Intercept . | . . . . . . . Searches Triggered . | . . . . . . . Construction Impeded . | . . . . . . . Haulers Reinforced . | . . . . . . . Active Scanning Responses . | . . . . . . . Cargo Convoy Interrupts . | . . . . . . . Stealth | -11 -10 -10 -9 -9 -9 -8 --------- Run | Yrd Mat Min Mat Min Exi Min Distress Signals 4 | . 4 . . . . . Communications Jammed . | . . . . . . . Distress Signals . | . . . . . . . Times Spotted 46 | . 19 3 19 4 . 1 Peak Tracking Total 7 | . 4 3 7 3 . 1 Tactical Retreats 4 | . 1 . 2 1 . . Traps | -11 -10 -10 -9 -9 -9 -8 ------- Run | Yrd Mat Min Mat Min Exi Min Traps Triggered 1 | . 1 . . . . . Indirectly . | . . . . . . . Trap Hack Attempts . | . . . . . . . Triggered . | . . . . . . . Disarmed . | . . . . . . . Reprogrammed . | . . . . . . . Reused . | . . . . . . . Traps Extracted . | . . . . . . . Installed . | . . . . . . . Triggered . | . . . . . . . Objects Rigged 2 | . . . 2 . . . Machines | -11 -10 -10 -9 -9 -9 -8 ---------- Run | Yrd Mat Min Mat Min Exi Min Machines Disabled 4 | . 1 2 1 . . . Max in Single Turn 2 | . 1 2 1 . . . Machines Repaired . | . . . . . . . Machines Dismantled . | . . . . . . . Machines Sabotaged . | . . . . . . . Overloaded Fab Kills . | . . . . . . . Hacking | -11 -10 -10 -9 -9 -9 -8 --------- Run | Yrd Mat Min Mat Min Exi Min Machines Accessed 8 | . 6 . 1 . 1 . Terminals 6 | . 5 . 1 . . . Fabricators . | . . . . . . . Repair Stations . | . . . . . . . Recycling Units 1 | . 1 . . . . . Scanalyzers . | . . . . . . . Garrison Access . | . . . . . . . Total Hacks 23 | . 19 . 3 . 1 . Successful 14 | . 12 . 1 . 1 . Failed 9 | . 7 . 2 . . . Catastrophic 3 | . 2 . 1 . . . Database Lockouts . | . . . . . . . Manual 24 | . 20 . 3 . 1 . Terminals 21 | . 18 . 3 . . . Fabricators . | . . . . . . . Repair Stations . | . . . . . . . Recycling Units 1 | . 1 . . . . . Scanalyzers . | . . . . . . . Garrison Access . | . . . . . . . Terminal Hacks 2 | . 1 . . . 1 . Zone Layout 1 | . 1 . . . . . Proto ID Catalog 1 | . . . . . 1 . Fabricator Hacks . | . . . . . . . Repair Station Hacks . | . . . . . . . Recycling Unit Hacks . | . . . . . . . Scanalyzer . | . . . . . . . Garrison Access Hacks . | . . . . . . . Unauthorized Hacks 12 | . 11 . 1 . . . Terminals 11 | . 10 . 1 . . . Botnet 5 | . 5 . . . . . Detonate 1 | . . . 1 . . . Skim 5 | . 5 . . . . . Fabricators . | . . . . . . . Repair Stations . | . . . . . . . Recycling Units 1 | . 1 . . . . . Recyclers 1 | . 1 . . . . . Scanalyzers . | . . . . . . . Garrison Access . | . . . . . . . Data Cores Recovered . | . . . . . . . Used . | . . . . . . . Hacking Detections 6 | . 5 . 1 . . . Full Trace Events . | . . . . . . . Feedback Events . | . . . . . . . Feedback Blocked . | . . . . . . . Robot Schematics Acquired . | . . . . . . . Robots Built . | . . . . . . . Authchips . | . . . . . . . Time . | . . . . . . . Total Robot Build Rating . | . . . . . . . Part Schematics Acquired . | . . . . . . . Parts Built . | . . . . . . . Authchips . | . . . . . . . Time . | . . . . . . . Total Part Build Rating . | . . . . . . . Part Studies Acquired . | . . . . . . . Parts Repaired . | . . . . . . . Time . | . . . . . . . Parts Recycled . | . . . . . . . Recycled Matter . | . . . . . . . Retrieved Matter . | . . . . . . . Retrieved Components . | . . . . . . . Parts Scanalyzed . | . . . . . . . Part Schematics Acquired . | . . . . . . . Parts Damaged . | . . . . . . . Bothacking | -11 -10 -10 -9 -9 -9 -8 ------------ Run | Yrd Mat Min Mat Min Exi Min Used RIF Installer . | . . . . . . . Robots Hacked . | . . . . . . . Non-combat . | . . . . . . . Combat . | . . . . . . . Robot Hacks Applied . | . . . . . . . Relay Couplers Released . | . . . . . . . Fabnet Peak Effective % . | . . . . . . . Robots Rewired 3 | . . . . . 3 . Allies Hacked . | . . . . . . . Hacks Repelled . | . . . . . . . Allies | -11 -10 -10 -9 -9 -9 -8 -------- Run | Yrd Mat Min Mat Min Exi Min Total Allies 3 | . . . . . 3 . Largest Group 3 | . . . . . 3 2 Highest-Rated Group 37 | . . . . . 37 29 Highest-Rated Ally 21 | . . . . . 21 21 Total Orders . | . . . . . . . Ally Attacks 9 | . . . . . . 9 Total Damage 151 | . . . . . . 151 Kills 5 | . . . . . . 5 Allies Corrupted . | . . . . . . . Allies Melted . | . . . . . . . Intel | -11 -10 -10 -9 -9 -9 -8 ------- Run | Yrd Mat Min Mat Min Exi Min Active Infowar (turns) 1315 | 39 1022 51 203 . . . Seismic 1315 | 39 1022 51 203 . . . Robot Analysis Total . | . . . . . . . Derelict Logs Recovered 2 | . . 2 . . . . Drone Launches . | . . . . . . . Drone Recoveries . | . . . . . . . Exploration | -11 -10 -10 -9 -9 -9 -8 ------------- Run | Yrd Mat Min Mat Min Exi Min Turns Passed 2969 | 359 1022 51 373 295 830 39 Spaces Moved 1382 | 191 417 28 113 163 455 15 Core 4 | 1 . . 3 . . . Treads 1364 | 176 417 28 110 163 455 15 Legs . | . . . . . . . Wheels 14 | 14 . . . . . . Hover . | . . . . . . . Flight . | . . . . . . . Fastest Speed 50 | 50 160 160 160 160 160 160 Average Speed 162 | 154 163 160 183 160 160 160 Slowest Speed 350 | 160 240 160 350 160 160 160 Overloaded Moves . | . . . . . . . Propulsion Burnouts . | . . . . . . . Robots Hopped . | . . . . . . . Potential Cave-ins . | . . . . . . . Cave-ins Triggered . | . . . . . . . Exploration Rate (%) 32 | 9 65 10 11 36 89 8 Regions Visited 6 Branch Regions 4 Pre-discovered Areas 4 | . 3 1 . . . . Known Exits Taken 2 | . . 1 1 . . . Unknown Exits Taken 4 | 1 1 . . 1 1 . Scrap Searched 3 | . . 1 . . . 2 Spaces Dug . | . . . . . . . Terrain Destroyed 56 | . 1 15 40 . . . Melee . | . . . . . . . Projectile 5 | . 1 . 4 . . . AOE 51 | . . 15 36 . . . Terrain Rammed . | . . . . . . . Walls Destroyed . | . . . . . . . Machines Disabled . | . . . . . . . Actions | -11 -10 -10 -9 -9 -9 -8 --------- Run | Yrd Mat Min Mat Min Exi Min Total 1862 | 222 666 31 197 176 549 21 Wait 189 | . 178 . 10 . . 1 Move 1376 | 190 416 27 112 162 454 15 Hop . | . . . . . . . Pick Up 16 | 2 6 . 6 . 2 . Fast Attach 24 | 10 4 . 10 . . . Attach 4 | . . . 3 . 1 . Detach 3 | 2 1 . . . . . Swap 8 | . 2 1 5 . . . Drop 11 | 1 7 . 2 . 1 . Fire 133 | 14 45 3 49 12 5 5 Melee . | . . . . . . . Ram . | . . . . . . . Kick . | . . . . . . . Crush 12 | 3 7 . . 2 . . Escape Stasis . | . . . . . . . Rewire 86 | . . . . . 86 . Trap . | . . . . . . . Miscellaneous . | . . . . . . . Route ------- -11/Scrapyard -10/Materials (discovered 6 exits: *Mat x3 / [*Min x2] / [*Sub]) -10/Mines -9/Materials (discovered 5 exits: Mat x3 / *Min x2) -9/Mines -9/Exiles -8/Mines History --------- Turn | Location | Event 17 | -11/Scrapyard | Discovered new exit (range 16) 360 | -11/Scrapyard | Entered Materials 361 | -10/Materials | Build established: Mutant 935 | -10/Materials | Discovered new exit (range 13) 1007 | -10/Materials | Discovered new exit (range 12) 1076 | -10/Materials | Discovered new exit (range 8) 1162 | -10/Materials | Discovered new exit (range 7) 1291 | -10/Materials | Identified exit to Materials 1322 | -10/Materials | Learned location of 1 exit from Storage 1350 | -10/Materials | Learned location of 3 exits from Materials 1351 | -10/Materials | Learned location of 2 exits from Materials 1354 | -10/Materials | Learned location of Recycling (-8) 1382 | -10/Materials | Entered Mines 1401 | -10/Mines | Learned location of Zion (-6) 1404 | -10/Mines | Learned Materials security intel 1408 | -10/Mines | Discovered exit to Materials (range 16) 1433 | -10/Mines | Entered Materials 1433 | -9/Materials | Evolved 2 slots: Propulsion x1, Weapon x1 1434 | -9/Materials | Identified exit to Mines 1435 | -9/Materials | Identified exit to Materials 1539 | -9/Materials | Lost 3 parts (1p2n) 1685 | -9/Materials | Lost 8 parts (1p1n1u5w) 1716 | -9/Materials | Core integrity fell below 50% 1806 | -9/Materials | Entered Mines 2008 | -9/Mines | Build established: Gunner 2091 | -9/Mines | Deemed a non-threat by the Exiles lab entrance 2091 | -9/Mines | Discovered new exit (range 5) 2101 | -9/Mines | Entered Exiles 2101 | -9/Exiles | Found Exiles lab destroyed 2765 | -9/Exiles | Opened EX-Vault 2776 | -9/Exiles | Found Supersonic Drone Bay 2915 | -9/Exiles | Discovered new exit (range 11) 2931 | -9/Exiles | Entered Mines 2931 | -8/Mines | Accompanied by 3 allies 2970 | -8/Mines | Self-destructed Last Messages --------------- 02932_ Slug penetrates H-55 Commando. 02932_ Mercenary 2a destroyed. 02934_ Slug penetrates Wall. 02937_ Penetrated by Slug. 02937_ Slug penetrates H-55 Commando. 02940_ Slug penetrates Wall. 02940_ Slug penetrates H-55 Commando. 02943_ H-55 Commando destroyed. 02951_ Acquired 47 matter. 02962_ Searching scrap... 02962_ Found Mni. Grenade Launcher. 02962_ Found 45 Matter. 02963_ Acquired 45 matter. 02963_ Acquired 20 matter. 02965_ Acquired 10 matter. 02967_ Searching scrap... 02967_ Found Cesium-ion Thruster. 02967_ Found Imp. Heat Sink. 02967_ Found 39 Matter. 02968_ Acquired 39 matter. Map ----- +----------------------------------------------------+ | ??????????????????????????????????????????? | | ??????????????????????????????????????????? | | ??????????????????????????????????????????? | | ??????????????????????????????????????????? | | ??????????????????????????????????????????? | | ??????????????????????????????????????????? | | ??????????????????????????????????????????? | | ??????????????????????????????????????????? | | ??????????????????????????????????????????? | | ??????????????????????????????????????????? | | ??????????????????????????????????????????? | | ??????????????????????????????????????????? | | ??????????????????????????????????????????? | | ??????????????????????????????????????????? | | ??????????????????????????????????????????? | | ??????????????????????????????????????????? | | ??????????????????????????????????????????? | | ??????????????????????????????????????????? | | ??????????????????????####???#????????????? | | ????######??????????? ### #????????????? | | ????# #??????????? #????????????? | | ????# #?????????? ??????????????? | | ????# #?????????? #????????????????? | | ????# #????????? #?????????????????? | | ????#! ########## ###???????????????? | | ????#%= =g == @* #??????????????? | | ????# = ][h!%=% ## #??????????????? | | ????# ## ######*[ ##?????????????????? | | ????####### #????## #??????????????????? | | ??????????# #??????# #??????????????????? | | ??????????# #???????# #??????????????????? | | ??????????# #???????? ?????????????????? | | ??????????# #????????? ###????????????????? | | ??????????# #????????? ??????????????????? | | ??????????? ??????????? ?????????????????? | | ??????????? ??????????? ????????????????? | | ??????????? ???????????? ???????????????? | | ??????????? ???????????? ???????????????? | | ??????????? ????????????? ????????????????? | | ??????????? ??????????????????????????????? | | ??????????? ??????????????????????????????? | | ??????????????????????????????????????????? | | ??????????????????????????????????????????? | | ??????????????????????????????????????????? | | ??????????????????????????????????????????? | | ??????????????????????????????????????????? | | ??????????????????????????????????????????? | | ??????????????????????????????????????????? | | ??????????????????????????????????????????? | | ??????????????????????????????????????????? | +----------------------------------------------------+ Best States ------------- Heat Dissipation 28 Energy Generation 12 Energy Capacity 265 Matter Stores 300 Matter Capacity 300 Sight Range 16 Terrain Scan Density 10 Evasion (%) 42 Targeting Accuracy 5 Recoil Reduction 2 Item Schematics ----------------- None Robot Schematics ------------------ None Fabricated ------------ Nothing Repaired ---------- Nothing Studied --------- None Alien Tech Used ----------------- None Achievements -------------- None Challenges ------------ None Game ------ Seed LauncherSeismicCartridge Manual? 0 Play Time 00:23:22 Cumulative 31.5 hours Start 2025.11.04 @ 13:43:19 End 2025.11.04 @ 14:27:52 Sessions 1 Manual Loads 0 Difficulty Rogue Special Mode None Game No. 69 Rogue 69 Adventurer 0 Explorer 0 Win Type - Total 2 Types 2/0/0/0/0/0/0/0/0/0 Lore% 39 Gallery% 31 Achievement% 30 Wizard Run 0 Options --------- Layout 1 ASCII 0 Keyboard 1 Movement Arrows Keybinds 0 Fullscreen 1 Font 16/SmallcapsGlow Map View 50x54 Zoom Use 16% Tactical HUD 1 Map Filters NONE Filters NONE Steam 1 RUN: 58fb77a2-67d5-4a3c-8f59-4e4d4a93350a